bitfinex-derivatives/quotes_SOLF0:USTF0_20250215
["timestamp","ask_amount","ask_price","bid_price","bid_amount"]
[1739609950371,0.03214823,196.09,196.05,0.03212372]
[1739609952167,5.13124823,196.09,196.05,0.03212372]
[1739609952572,0.03214823,196.09,196.06,5.0996]
[1739609952766,0.03214823,196.09,196.05,0.03212372]
[1739609952967,0.03214823,196.09,196.06,8.97276694]
[1739609954071,0.03214823,196.09,196.06,14.07236694]
[1739609954369,0.03214823,196.09,196.06,8.97276694]
[1739609954966,0.03214823,196.09,196.07,5.0994]
[1739609956570,0.03214823,196.09,196.08,5.0992]
[1739609958270,0.03214823,196.09,196.07,5.0994]
[1739609958670,0.03214823,196.09,196.06,8.97276694]
[1739609960072,0.03214823,196.09,196.07,5.0994]
[1739609963978,0.03214823,196.09,196.06,8.97276694]
[1739609965177,5.13104823,196.09,196.05,0.03212372]
[1739609965573,0.03214823,196.09,196.06,5.0996]
[1739609967278,0.03214823,196.09,196.05,5.13202372]
[1739609967879,0.03214823,196.09,196.06,5.0996]
[1739609968274,0.03214823,196.09,196.06,8.97276694]
[1739609969081,0.03214823,196.09,196.08,5.0992]
[1739609969679,0.03214823,196.09,196.08,14.07196694]
[1739609978283,4.823e-05,196.09,196.08,14.07196694]
[1739610001701,4.823e-05,196.09,196.06,8.97276694]
[1739610001897,4.823e-05,196.09,196.05,0.03212372]
[1739610002499,4.823e-05,196.09,196.06,5.0996]
[1739610003802,4.823e-05,196.09,196.06,14.07236694]
[1739610003999,4.823e-05,196.09,196.08,5.0992]
[1739610005102,4.823e-05,196.09,196.06,8.97276694]
[1739610005103,4.823e-05,196.09,196.06,14.07216694]
[1739610005303,4.823e-05,196.09,196.05,0.03212372]
[1739610005803,8.97276694,196.08,196.05,0.03212372]
[1739610007207,1.4952,196.07,196.05,0.03212372]
[1739610008009,6.5946,196.07,196.05,0.03212372]
[1739610011310,14.07246694,196.06,196.0,14.07376694]
[1739610011611,8.97276694,196.06,196.0,14.07376694]
[1739610012009,1.4987,196.05,196.0,14.07376694]
[1739610012208,5.1006,196.03,195.98,14.07446694]
[1739610012604,0.03303197,196.02,195.99,0.03883051]
[1739610017217,0.03303197,196.02,195.99,5.14033051]
[1739610018516,0.03303197,196.02,196.0,14.07396694]
[1739610019412,0.03303197,196.02,196.01,5.101]
[1739610019607,0.03303197,196.02,196.0,8.97276694]
[1739610020117,0.03303197,196.02,196.0,14.07376694]
[1739610021017,0.03303197,196.02,196.0,8.97276694]
[1739610021216,0.03303197,196.02,196.01,5.101]
[1739610028824,3.197e-05,196.02,196.01,5.101]
[1739610042043,3.102,196.12,196.0,8.97276694]
[1739610042337,8.97276694,196.18,196.1,8.97276694]
[1739610042636,12.18226694,196.18,196.12,8.97276694]
[1739610042838,8.97276694,196.16,196.1,8.97276694]
[1739610043039,8.97276694,196.16,196.13,0.0383884]
[1739610043436,5.0974,196.15,196.13,0.0383884]
[1739610046842,14.07036694,196.14,196.13,0.0383884]
[1739610048144,8.97276694,196.14,196.13,0.0383884]
[1739610048744,8.97276694,196.16,196.13,0.0383884]
[1739610050249,8.97276694,196.16,196.13,5.1361884]
[1739610050447,8.97276694,196.16,196.13,0.0383884]
[1739610050841,0.03835083,196.17,196.13,0.0383884]
[1739610051750,0.03835083,196.17,196.13,5.1361884]
[1739610052145,0.03835083,196.17,196.13,0.0383884]
[1739610052348,0.03835083,196.17,196.14,5.0976]
[1739610053252,0.03835083,196.17,196.15,5.0973]
[1739610053951,0.03835083,196.17,196.13,0.0383884]
[1739610054148,0.03835083,196.17,196.14,5.0976]
[1739610054348,0.03835083,196.17,196.13,0.0383884]
[1739610056053,5.13525083,196.17,196.13,0.0383884]
[1739610059753,5.0974,196.15,196.13,0.0383884]
[1739610059952,8.97276694,196.16,196.13,0.0383884]
[1739610060151,0.03835083,196.17,196.13,0.0383884]
[1739610061656,0.03835083,196.17,196.14,8.97276694]
[1739610062057,0.03835083,196.17,196.16,5.0971]
[1739610063857,0.03835083,196.17,196.16,14.06986694]
[1739610065365,4.6108,196.25,196.2,5.0959]
[1739610065552,4.6108,196.25,196.19,8.97276694]
[1739610066559,0.03223459,196.24,196.2,5.12897656]
[1739610067157,0.03223459,196.24,196.2,0.03297656]
[1739610067761,0.03223459,196.24,196.2,5.12877656]
[1739610067960,0.03223459,196.24,196.2,0.03297656]
[1739610068164,0.03223459,196.24,196.21,8.97276694]
[1739610068364,0.03223459,196.24,196.21,14.06856694]
[1739610070358,0.03223459,196.24,196.21,8.97276694]
[1739610071668,0.03223459,196.24,196.21,14.06846694]
[1739610073271,0.03223459,196.24,196.22,5.0955]
[1739610074870,0.03223459,196.24,196.21,8.97276694]
[1739610075172,0.03223459,196.24,196.23,14.06806694]
[1739610081980,37.03228415,196.35,196.23,8.97276694]
[1739610082179,37.03228415,196.35,196.32,8.97276694]
[1739610082380,4.7611,196.36,196.32,8.97276694]
[1739610083283,4.79817932,196.36,196.32,9.00712595]
[1739610083583,0.03707932,196.36,196.32,9.00712595]
[1739610083882,0.03707932,196.36,196.34,8.97276694]
[1739610086376,0.03707932,196.36,196.34,14.06506694]
[1739610088493,0.03707932,196.36,196.34,8.97276694]
[1739610090699,9.00984626,196.36,196.32,0.03435901]
[1739610090898,5.0924,196.35,196.32,0.03435901]
[1739610091088,9.00984626,196.36,196.32,0.03435901]
[1739610091797,0.03707932,196.36,196.32,9.00712595]
[1739610092795,0.03707932,196.36,196.34,8.97276694]
[1739610093699,0.03707932,196.36,196.34,14.06496694]
[1739610095794,0.03707932,196.36,196.35,5.0921]
[1739610096001,8.97276694,196.44,196.34,8.97276694]
[1739610096204,8.97276694,196.44,196.38,8.97276694]
[1739610096999,8.97276694,196.44,196.39,5.0911]
[1739610097201,0.0331163,196.43,196.39,5.12785218]
[1739610097407,0.0331163,196.43,196.4,14.06356694]
[1739610097901,0.0331163,196.43,196.4,8.97276694]
[1739610098495,0.0331163,196.43,196.39,0.03675218]
[1739610098894,8.97276694,196.42,196.39,0.03675218]
[1739610099099,14.06306694,196.42,196.39,0.03675218]
[1739610099608,8.97276694,196.4,196.39,0.03675218]
[1739610099904,8.97276694,196.4,196.32,8.97276694]
[1739610100100,8.97276694,196.4,196.34,8.97276694]
[1739610100306,14.06366694,196.4,196.34,8.97276694]
[1739610101005,5.12516954,196.39,196.35,0.03238093]
[1739610101602,5.0914,196.38,196.35,0.03238093]
[1739610102002,8.97276694,196.38,196.35,0.03238093]
[1739610102204,5.0916,196.37,196.35,0.03238093]
[1739610102404,8.97276694,196.38,196.35,0.03238093]
[1739610102900,5.0919,196.36,196.35,0.03238093]
[1739610104409,8.97276694,196.38,196.35,0.03238093]
[1739610105203,14.06416694,196.38,196.35,0.03238093]
[1739610105408,8.97276694,196.38,196.35,0.03238093]
[1739610106107,5.0916,196.37,196.35,0.03238093]
[1739610106409,8.97276694,196.38,196.35,0.03238093]
[1739610108005,14.06416694,196.38,196.35,0.03238093]
[1739610109315,0.03406954,196.39,196.36,8.97276694]
[1739610109513,0.03406954,196.39,196.38,8.97276694]
[1739610110411,0.03406954,196.39,196.38,14.06416694]
[1739610113507,8.97276694,196.48,196.42,5.0903]
[1739610113712,8.97276694,196.48,196.43,8.97276694]
[1739610114713,0.03542555,196.47,196.44,0.03555991]
[1739610118217,5.12472555,196.47,196.44,0.03555991]
[1739610120718,0.03542555,196.47,196.44,0.03555991]
[1739610120918,8.97276694,196.46,196.44,0.03555991]
[1739610121117,10.50836694,196.46,196.44,0.03555991]
[1739610121419,5.0896,196.45,196.44,0.03555991]
[1739610123118,10.50836694,196.46,196.44,0.03555991]
[1739610123519,5.0896,196.45,196.44,0.03555991]
[1739610124723,10.50836694,196.46,196.44,0.03555991]
[1739610125617,5.0896,196.45,196.44,0.03555991]
[1739610127926,10.50836694,196.46,196.39,8.97276694]
[1739610127927,5.0902,196.43,196.39,8.97276694]
[1739610128127,10.50836694,196.46,196.39,8.97276694]
[1739610129123,14.06306694,196.42,196.41,0.03676769]
[1739610129430,14.06306694,196.42,196.3,4.7089]
[1739610129431,8.97276694,196.42,196.33,8.97276694]
[1739610129621,1.5356,196.46,196.33,8.97276694]
[1739610129622,5.092,196.36,196.33,8.97276694]
[1739610130019,8.97276694,196.38,196.33,8.97276694]
[1739610130228,5.0916,196.37,196.33,8.97276694]
[1739610130428,5.13066284,196.37,196.34,0.03354402]
[1739610130628,0.03906284,196.37,196.34,0.03354402]
[1739610132529,0.03906284,196.37,196.36,8.97276694]
[1739610132725,1.5356,196.46,196.36,8.97276694]
[1739610132926,1.5356,196.46,196.41,8.97276694]
[1739610133928,0.03708628,196.45,196.42,0.03402075]
[1739610136632,5.12668628,196.45,196.42,0.03402075]
[1739610137325,0.03708628,196.45,196.42,0.03402075]
[1739610139228,0.03708628,196.45,196.42,5.12432075]
[1739610140134,0.03708628,196.45,196.42,0.03402075]
[1739610143135,5.0901,196.43,196.42,0.03402075]
[1739610143536,5.0898,196.44,196.42,0.03402075]
[1739610144540,5.0901,196.43,196.42,0.03402075]
[1739610146841,5.0915,196.38,196.33,13.99475334]
[1739610147036,5.0915,196.38,196.32,5.0929]
[1739610147935,13.99475334,196.4,196.3,19.08795334]
[1739610148137,0.03738898,196.37,196.33,0.03350469]
[1739610148331,5.0919,196.36,196.33,0.03350469]
[1739610149541,5.0922,196.35,196.33,0.03350469]
[1739610150039,5.0924,196.34,196.33,0.03350469]
[1739610152242,0.03738898,196.37,196.33,0.03350469]
[1739610152444,5.092,196.36,196.33,0.03350469]
[1739610153443,5.0921,196.35,196.33,0.03350469]
[1739610153841,0.03738898,196.37,196.33,0.03350469]
[1739610154038,5.0919,196.36,196.33,0.03350469]
[1739610154343,0.03738898,196.37,196.33,0.03350469]
[1739610155046,0.03738898,196.37,196.33,5.12610469]
[1739610155246,0.03738898,196.37,196.33,0.03350469]
[1739610155749,0.03738898,196.37,196.36,5.0919]
[1739610156846,1.4911,196.46,196.4,5.0907]
[1739610157254,5.0897,196.45,196.39,5.0909]
[1739610157447,5.0897,196.45,196.36,13.99475334]
[1739610157848,0.03218113,196.42,196.39,0.03382526]
[1739610158750,0.03218113,196.42,196.39,14.0285786]
[1739610159151,0.03218113,196.42,196.4,5.0908]
[1739610161652,0.03218113,196.42,196.39,14.0285786]
[1739610163253,0.03218113,196.42,196.41,5.0906]
[1739610163656,0.03218113,196.42,196.41,14.04565674]
[1739610165659,0.03218113,196.42,196.41,19.08274524]
[1739610166356,5.0885,196.49,196.44,5.0898]
[1739610167357,0.03692199,196.48,196.45,0.03266165]
[1739610170361,0.03692199,196.48,196.46,5.0893]
[1739610170560,0.03692199,196.48,196.45,0.03266165]
[1739610171554,0.03692199,196.48,196.46,5.0892]
[1739610171760,0.03692199,196.48,196.45,0.03266165]
[1739610173061,0.03692199,196.48,196.45,5.12216165]
[1739610173863,0.03692199,196.48,196.45,0.03266165]
[1739610176066,0.03692199,196.48,196.46,5.0892]
[1739610176568,0.03692199,196.48,196.45,0.03266165]
[1739610176769,0.03692199,196.48,196.45,5.12216165]
[1739610176965,0.03692199,196.48,196.45,0.03266165]
[1739610179469,0.03692199,196.48,196.45,5.12216165]
[1739610180373,5.0893,196.47,196.45,0.03266165]
[1739610180570,0.03692199,196.48,196.45,0.03266165]
[1739610181373,5.0893,196.47,196.45,0.03266165]
[1739610181670,0.03692199,196.48,196.45,0.03266165]
[1739610182468,5.089,196.47,196.45,0.03266165]
[1739610182674,0.03692199,196.48,196.45,0.03266165]
[1739610183671,5.12592199,196.48,196.45,0.03266165]
[1739610184074,0.03692199,196.48,196.45,0.03266165]
[1739610184374,0.03692199,196.48,196.45,5.12216165]
[1739610184570,0.03692199,196.48,196.45,0.03266165]
[1739610186274,0.03692199,196.48,196.45,5.12216165]
[1739610186774,0.03692199,196.48,196.45,0.03266165]
[1739610187675,0.03692199,196.48,196.45,8.98658281]
[1739610188774,5.12572199,196.48,196.45,8.98658281]
[1739610190271,5.0891,196.47,196.45,0.03266165]
[1739610191471,8.99084315,196.48,196.45,0.03266165]
[1739610191673,5.12572199,196.48,196.45,0.03266165]
[1739610192675,0.03692199,196.48,196.45,0.03266165]
[1739610194382,8.99084315,196.48,196.45,0.03266165]
[1739610195175,5.0893,196.46,196.45,0.03266165]
[1739610197279,14.04322116,196.46,196.45,0.03266165]
[1739610197476,8.95392116,196.44,196.37,14.04552116]
[1739610197872,8.95392116,196.44,196.39,8.95392116]
[1739610198176,5.0901,196.43,196.39,8.95392116]
[1739610198576,5.12252774,196.43,196.39,8.9873141]
[1739610199076,0.03242774,196.43,196.39,8.9873141]
[1739610200370,0.03242774,196.43,196.39,14.0784141]
[1739610201572,0.03242774,196.43,196.41,8.95392116]
[1739610201775,0.03242774,196.43,196.41,14.04432116]
[1739610202177,0.03242774,196.43,196.41,8.95392116]
[1739610203481,0.03242774,196.43,196.41,14.04442116]
[1739610203980,0.03242774,196.43,196.41,8.95392116]
[1739610204182,0.03242774,196.43,196.42,5.0903]
[1739610205676,2.774e-05,196.43,196.42,5.0903]
[1739610205879,1.5985,196.51,196.41,8.95392116]
[1739610206082,5.0878,196.52,196.48,8.95392116]
[1739610206579,8.95392116,196.54,196.48,8.95392116]
[1739610206780,5.088,196.51,196.48,8.95392116]
[1739610206975,5.088,196.51,196.49,0.03880705]
[1739610208477,0.03617863,196.53,196.49,0.03880705]
[1739610208682,5.0883,196.5,196.49,0.03880705]
[1739610218695,14.04192116,196.52,196.49,0.03880705]
[1739610218900,8.95392116,196.52,196.49,0.03880705]
[1739610219192,5.0882,196.51,196.49,0.03880705]
[1739610219395,8.95392116,196.52,196.49,0.03880705]
[1739610219894,5.088,196.51,196.49,0.03880705]
[1739610220399,5.0882,196.51,196.49,0.03880705]
[1739610221603,5.0877,196.52,196.49,0.03880705]
[1739610222106,0.03617863,196.53,196.49,0.03880705]
[1739610222605,0.03617863,196.53,196.5,8.95392116]
[1739610222798,0.03617863,196.53,196.51,5.0878]
[1739610223103,0.03617863,196.53,196.52,8.95392116]
[1739610224305,0.03617863,196.53,196.52,14.04162116]
[1739610224606,0.03617863,196.53,196.52,8.95392116]
[1739610227802,0.03617863,196.53,196.52,14.04162116]
[1739610228204,8.95392116,196.62,196.52,8.95392116]
[1739610228509,5.0859,196.6,196.56,8.95392116]
[1739610228802,8.95392116,196.62,196.56,8.95392116]
[1739610229208,0.03561285,196.61,196.57,0.03610596]
[1739610230709,5.0857,196.6,196.57,0.03610596]
[1739610231006,0.03561285,196.61,196.57,0.03610596]
[1739610232005,5.12101285,196.61,196.57,0.03610596]
[1739610233003,5.0857,196.6,196.57,0.03610596]
[1739610233407,0.03561285,196.61,196.57,0.03610596]
[1739610234712,5.086,196.59,196.57,0.03610596]
[1739610235913,5.12121285,196.61,196.57,0.03610596]
[1739610236514,5.0857,196.6,196.57,0.03610596]
[1739610236914,0.03561285,196.61,196.57,0.03610596]
[1739610237118,5.12101285,196.61,196.57,0.03610596]
[1739610237616,0.03561285,196.61,196.57,0.03610596]
[1739610237916,5.0859,196.59,196.57,0.03610596]
[1739610238318,5.0857,196.6,196.57,0.03610596]
[1739610239512,0.03561285,196.61,196.57,0.03610596]
[1739610239718,5.086,196.59,196.57,0.03610596]
[1739610242522,5.0862,196.58,196.57,0.03610596]
[1739610242718,14.04012116,196.58,196.57,0.03610596]
[1739610243918,5.0862,196.58,196.57,0.03610596]
[1739610244322,0.03561285,196.61,196.57,0.03610596]
[1739610244518,0.03561285,196.61,196.59,8.95392116]
[1739610245914,0.03561285,196.61,196.57,8.99002712]
[1739610248020,0.03561285,196.61,196.57,14.07642712]
[1739610249319,0.03561285,196.61,196.57,8.99002712]
[1739610249522,5.12111285,196.61,196.57,8.99002712]
[1739610250224,0.03561285,196.61,196.57,8.99002712]
[1739610251025,5.0857,196.6,196.57,8.99002712]
[1739610251228,5.0857,196.6,196.57,0.03610596]
[1739610252330,0.03561285,196.61,196.57,14.07642712]
[1739610252922,0.03561285,196.61,196.57,8.99002712]
[1739610254828,0.03561285,196.61,196.59,8.95392116]
[1739610256027,0.03561285,196.61,196.59,14.03972116]
[1739610258734,0.03561285,196.61,196.59,8.95392116]
[1739610261630,0.03561285,196.61,196.57,14.07642712]
[1739610261830,5.0859,196.59,196.57,8.99002712]
[1739610263130,0.03561285,196.61,196.57,0.03610596]
[1739610263329,5.0862,196.58,196.57,0.03610596]
[1739610263631,14.04012116,196.58,196.57,0.03610596]
[1739610268734,18.80672116,196.6,196.57,0.03610596]
[1739610268942,13.72082116,196.6,196.57,0.03610596]
[1739610269233,0.03561285,196.61,196.57,8.99002712]
[1739610269839,0.03561285,196.61,196.57,14.07642712]
[1739610271239,0.03561285,196.61,196.57,8.99002712]
[1739610271441,0.03561285,196.61,196.58,5.0862]
[1739610275042,5.12101285,196.61,196.57,8.99002712]
[1739610275445,0.03561285,196.61,196.57,8.99002712]
[1739610276647,0.03561285,196.61,196.57,14.07642712]
[1739610278843,5.12111285,196.61,196.57,8.99002712]
[1739610279545,0.03561285,196.61,196.57,14.07642712]
[1739610279744,0.03561285,196.61,196.57,8.99002712]
[1739610280045,0.03561285,196.61,196.57,14.07622712]
[1739610280542,0.03561285,196.61,196.58,5.0862]
[1739610281739,0.03561285,196.61,196.57,8.99002712]
[1739610282641,5.12121285,196.61,196.57,8.99002712]
[1739610283050,5.12121285,196.61,196.57,14.07642712]
[1739610284747,5.086,196.59,196.57,0.03610596]
[1739610284947,8.95392116,196.6,196.57,0.03610596]
[1739610285348,5.0859,196.59,196.57,0.03610596]
[1739610286454,8.95392116,196.6,196.57,0.03610596]
[1739610286655,14.04012116,196.58,196.57,0.03610596]
[1739610287154,8.95392116,196.58,196.57,0.03610596]
[1739610289558,5.0859,196.59,196.57,0.03610596]
[1739610290350,5.0862,196.58,196.57,0.03610596]
[1739610291658,14.04012116,196.58,196.57,0.03610596]
[1739610303164,5.0862,196.58,196.57,0.03610596]
[1739610304767,14.03982116,196.6,196.57,0.03610596]
[1739610305067,5.0859,196.6,196.57,0.03610596]
[1739610307268,0.03561285,196.61,196.57,0.03610596]
[1739610307468,5.086,196.59,196.57,0.03610596]
[1739610308462,8.95392116,196.6,196.57,0.03610596]
[1739610308667,5.0862,196.58,196.57,0.03610596]
[1739610309966,14.03982116,196.6,196.57,0.03610596]
[1739610310167,8.95392116,196.6,196.57,0.03610596]
[1739610311166,5.086,196.59,196.57,0.03610596]
[1739610311669,5.0862,196.58,196.57,0.03610596]
[1739610315668,14.04012116,196.58,196.57,0.03610596]
[1739610332282,14.03962116,196.6,196.57,0.03610596]
[1739610332581,0.03561285,196.61,196.57,0.03610596]
[1739610332788,0.03561285,196.61,196.57,8.99002712]
[1739610332979,0.03561285,196.61,196.59,8.95392116]
[1739610334092,0.03561285,196.61,196.59,14.03972116]
[1739610335789,0.03561285,196.61,196.59,8.95392116]
[1739610337790,0.03561285,196.61,196.59,14.03982116]
[1739610338294,0.03561285,196.61,196.6,5.0857]
[1739610340395,5.0839,196.67,196.6,5.0857]
[1739610340694,5.0839,196.67,196.62,8.95392116]
[1739610341490,51.26337445,196.68,196.62,8.95392116]
[1739610341691,0.03763026,196.66,196.63,0.03842253]
[1739610342896,5.12173026,196.66,196.63,0.03842253]
[1739610343695,0.03763026,196.66,196.63,0.03842253]
[1739610344996,5.12183026,196.66,196.63,0.03842253]
[1739610346498,5.0846,196.65,196.63,0.03842253]
[1739610347094,5.0846,196.64,196.63,0.03842253]
[1739610347292,14.03852116,196.64,196.63,0.03842253]
[1739610356703,5.0846,196.64,196.63,0.03842253]
[1739610358808,5.12193026,196.66,196.63,0.03842253]
[1739610359004,0.03763026,196.66,196.63,0.03842253]
[1739610361009,5.12183026,196.66,196.63,0.03842253]
[1739610362508,0.03763026,196.66,196.63,0.03842253]
[1739610363813,8.99155142,196.66,196.63,0.03842253]
[1739610364404,5.0846,196.65,196.63,0.03842253]
[1739610366413,5.0846,196.64,196.63,0.03842253]
[1739610367114,14.03852116,196.64,196.63,0.03842253]
[1739610367313,5.0857,196.6,196.56,8.95392116]
[1739610368411,5.12484674,196.6,196.56,8.98904705]
[1739610368815,0.03914674,196.6,196.56,8.98904705]
[1739610370116,0.03914674,196.6,196.57,5.0863]
[1739610370313,0.03914674,196.6,196.58,8.95392116]
[1739610372022,0.03914674,196.6,196.59,5.0859]
[1739610375022,4.674e-05,196.6,196.59,5.0859]
[1739610375231,8.95392116,196.67,196.63,5.0848]
[1739610376521,8.98653427,196.67,196.63,5.11894173]
[1739610377431,8.98653427,196.67,196.63,0.03414173]
[1739610377819,8.95392116,196.65,196.63,0.03414173]
[1739610378624,14.03852116,196.65,196.63,0.03414173]
[1739610381634,8.95392116,196.65,196.63,0.03414173]
[1739610381837,5.0846,196.64,196.63,0.03414173]
[1739610382234,8.95392116,196.65,196.63,0.03414173]
[1739610382435,14.03832116,196.65,196.63,0.03414173]
[1739610385038,5.0846,196.64,196.63,0.03414173]
[1739610390737,8.98653427,196.67,196.63,0.03414173]
[1739610391044,0.03261311,196.67,196.63,0.03414173]
[1739610391444,0.03261311,196.67,196.63,5.11884173]
[1739610391945,0.03261311,196.67,196.64,8.95392116]
[1739610393840,5.11651311,196.67,196.63,0.03414173]
[1739610396446,0.03261311,196.67,196.63,0.03414173]
[1739610397646,5.0841,196.66,196.63,0.03414173]
[1739610397841,8.98653427,196.67,196.63,0.03414173]
[1739610398048,8.95392116,196.65,196.63,0.03414173]
[1739610400048,14.03832116,196.65,196.63,0.03414173]
[1739610403352,5.0844,196.65,196.63,0.03414173]
[1739610404748,8.98653427,196.67,196.63,0.03414173]
[1739610405051,5.0841,196.66,196.63,0.03414173]
[1739610423067,14.07043427,196.67,196.63,0.03414173]
[1739610424072,8.98653427,196.67,196.63,0.03414173]
[1739610424373,5.0841,196.66,196.63,0.03414173]
[1739610427166,5.11661311,196.67,196.63,0.03414173]
[1739610431075,0.03261311,196.67,196.63,0.03414173]
[1739610431275,0.03261311,196.67,196.63,5.11894173]
[1739610431476,0.03261311,196.67,196.64,8.95392116]
[1739610432374,0.03261311,196.67,196.63,0.03414173]
[1739610433269,5.11651311,196.67,196.63,0.03414173]
[1739610451890,0.03261311,196.67,196.63,0.03414173]
[1739610452189,5.0841,196.66,196.63,0.03414173]
[1739610452587,5.11651311,196.67,196.63,0.03414173]
[1739610457495,0.03261311,196.67,196.63,0.03414173]
[1739610457696,5.0842,196.66,196.63,0.03414173]
[1739610460600,0.03261311,196.67,196.63,0.03414173]
[1739610462100,5.11671311,196.67,196.63,0.03414173]
[1739610462501,0.03261311,196.67,196.64,8.95392116]
[1739610462800,0.03261311,196.67,196.66,8.95392116]
[1739610464000,0.03261311,196.67,196.64,8.95392116]
[1739610464900,8.98653427,196.67,196.63,0.03414173]
[1739610465302,14.07063427,196.67,196.63,0.03414173]
[1739610465492,8.98653427,196.67,196.63,0.03414173]
[1739610467003,5.0842,196.66,196.63,0.03414173]
[1739610468907,8.98653427,196.67,196.63,0.03414173]
[1739610469105,5.0844,196.65,196.63,0.03414173]
[1739610469705,8.98653427,196.67,196.63,0.03414173]
[1739610469906,5.0843,196.66,196.63,0.03414173]
[1739610472206,14.07043427,196.67,196.63,0.03414173]
[1739610472407,5.11651311,196.67,196.63,0.03414173]
[1739610473507,0.03261311,196.67,196.63,0.03414173]
[1739610476214,0.03261311,196.67,196.64,8.95392116]
[1739610480411,5.11651311,196.67,196.64,8.95392116]
[1739610481514,5.0842,196.66,196.64,8.95392116]
[1739610482015,5.0842,196.66,196.63,0.03414173]
[1739610484617,0.03261311,196.67,196.63,0.03414173]
[1739610485421,5.11671311,196.67,196.63,0.03414173]
[1739610486314,0.03261311,196.67,196.66,8.95392116]
[1739610488319,0.03261311,196.67,196.66,14.03802116]
[1739610489723,0.03261311,196.67,196.66,8.95392116]
[1739610493115,0.03261311,196.67,196.66,14.03802116]
[1739610497431,0.03261311,196.67,196.66,8.95392116]
[1739610497730,0.03261311,196.67,196.64,8.95392116]
[1739610498223,0.03261311,196.67,196.66,8.95392116]
[1739610498825,0.03261311,196.67,196.66,14.03802116]
[1739610499923,0.03261311,196.67,196.66,8.95392116]
[1739610500524,0.03261311,196.67,196.66,14.03802116]
[1739610503225,3.0867,196.75,196.66,8.95392116]
[1739610503424,3.0867,196.75,196.71,8.95392116]
[1739610504324,3.0867,196.75,196.71,14.03672116]
[1739610504522,0.0389119,196.75,196.73,8.95392116]
[1739610504922,0.0389119,196.75,196.71,0.03413552]
[1739610506129,8.95392116,196.74,196.71,0.03413552]
[1739610507226,3.1454119,196.75,196.71,0.03413552]
[1739610507531,3.1454119,196.75,196.71,8.98805668]
[1739610507732,0.0389119,196.75,196.71,8.98805668]
[1739610508326,0.0389119,196.75,196.71,14.07065668]
[1739610508728,0.0389119,196.75,196.72,5.0826]
[1739610509032,0.0389119,196.75,196.71,8.98805668]
[1739610509333,0.0389119,196.75,196.74,5.0821]
[1739610510627,1.19e-05,196.75,196.74,5.0821]
[1739610510827,10.59802116,196.84,196.74,8.95392116]
[1739610511129,10.59802116,196.84,196.71,0.03413552]
[1739610511130,10.59802116,196.84,196.77,8.95392116]
[1739610511428,10.59802116,196.84,196.64,114.08]
[1739610511429,3.2404,196.85,196.79,8.95392116]
[1739610511823,0.03628791,196.84,196.81,5.0802]
[1739610512433,0.03628791,196.84,196.82,5.08]
[1739610512633,0.03628791,196.84,196.8,0.03760373]
[1739610513033,0.03628791,196.84,196.81,5.0802]
[1739610513235,0.03628791,196.84,196.8,0.03760373]
[1739610514130,0.03628791,196.84,196.82,5.08]
[1739610514328,0.03628791,196.84,196.8,0.03760373]
[1739610515128,0.03628791,196.84,196.81,5.0802]
[1739610515327,8.99020907,196.84,196.8,0.03760373]
[1739610515530,8.95392116,196.82,196.8,0.03760373]
[1739610522349,8.99020907,196.84,196.8,0.03760373]
[1739610525550,8.99020907,196.84,196.8,5.11810373]
[1739610526752,8.99020907,196.84,196.8,0.03760373]
[1739610527348,8.99020907,196.84,196.8,5.11810373]
[1739610527549,8.99020907,196.84,196.8,0.03760373]
[1739610527951,0.03628791,196.84,196.82,5.08]
[1739610528253,0.03628791,196.84,196.8,0.03760373]
[1739610528552,8.99020907,196.84,196.8,0.03760373]
[1739610529050,8.99020907,196.84,196.8,5.11810373]
[1739610529252,8.99020907,196.84,196.8,0.03760373]
[1739610529457,8.95392116,196.82,196.8,0.03760373]
[1739610532754,5.0802,196.81,196.71,8.95392116]
[1739610532956,8.95392116,196.75,196.69,8.95392116]
[1739610534056,0.03420701,196.74,196.7,0.03744568]
[1739610534554,8.95392116,196.73,196.7,0.03744568]
[1739610534763,8.95392116,196.71,196.7,0.03744568]
[1739610536565,14.03672116,196.71,196.7,0.03744568]
[1739610536765,8.95392116,196.71,196.65,8.95392116]
[1739610537266,3.0983,196.73,196.63,8.95392116]
[1739610537267,8.95392116,196.69,196.63,8.95392116]
[1739610537964,0.03526861,196.68,196.64,0.03799754]
[1739610539057,5.0839,196.67,196.64,0.03799754]
[1739610541964,14.03782116,196.67,196.64,0.03799754]
[1739610542466,5.0842,196.66,196.64,0.03799754]
[1739610543069,5.0844,196.65,196.64,0.03799754]
[1739610546869,14.03832116,196.65,196.64,0.03799754]
[1739610554881,8.95392116,196.65,196.64,0.03799754]
[1739610561782,14.03832116,196.65,196.64,0.03799754]
[1739610568580,8.95392116,196.65,196.64,0.03799754]
[1739610570087,14.03832116,196.65,196.64,0.03799754]
[1739610574187,8.95392116,196.65,196.64,0.03799754]
[1739610575483,14.03832116,196.65,196.64,0.03799754]
[1739610578495,8.95392116,196.65,196.52,28.23927576]